bitfinex-derivatives/quotes_BNBF0:USTF0_20250603
["timestamp","ask_amount","ask_price","bid_price","bid_amount"]
[1748919020216,0.89119895,668.88,668.37,0.29923545]
[1748919021315,0.89106301,668.87,668.37,0.29923545]
[1748919021614,0.89119895,668.88,668.37,0.29923545]
[1748919022017,0.89091931,668.87,668.37,0.29923545]
[1748919022215,0.89119895,668.88,668.37,0.29923545]
[1748919034326,0.89119895,668.88,668.38,1.11415634]
[1748919034527,0.89119895,668.88,668.39,0.29922649]
[1748919034925,1.235,668.87,668.39,1.41322318]
[1748919035327,1.235,668.87,668.4,1.11395449]
[1748919035529,1.235,668.87,668.41,0.29921754]
[1748919036021,1.235,668.87,668.41,1.41317203]
[1748919036426,1.235,668.87,668.41,0.29921754]
[1748919036728,1.235,668.87,668.43,1.11395449]
[1748919036925,1.235,668.87,668.44,0.29920411]
[1748919037322,1.235,668.87,668.44,1.4131586]
[1748919037620,1.235,668.87,668.44,1.41284154]
[1748919038127,1.235,668.87,668.44,0.29920411]
[1748919045035,0.955,668.86,668.44,0.29920411]
[1748919049740,0.859,668.85,668.44,0.29920411]
[1748919050141,0.859,668.85,668.47,1.11434917]
[1748919050341,0.859,668.85,668.48,0.29918621]
[1748919051244,0.859,668.85,668.53,1.11434917]
[1748919051541,0.859,668.85,668.54,0.29915936]
[1748919060347,0.859,668.85,668.57,0.47479079]
[1748919060642,0.859,668.85,668.58,0.29914146]
[1748919063353,0.986,668.84,668.58,0.29914146]
[1748919075358,0.859,668.85,668.58,0.29914146]
[1748919078669,0.989,668.84,668.58,0.29914146]
[1748919089971,0.89071387,668.83,668.58,0.29914146]
[1748919090178,0.989,668.84,668.58,0.29914146]
[1748919090378,1.99496757,668.83,668.58,0.29914146]
[1748919090579,2.09325264,668.84,668.58,0.29914146]
[1748919091473,1.10425264,668.74,668.58,0.29914146]
[1748919091675,1.10425264,668.77,668.58,0.29914146]
[1748919091877,1.10425264,668.75,668.58,0.29914146]
[1748919092877,0.89082666,668.76,668.58,0.29914146]
[1748919102688,0.77,668.75,668.58,0.29914146]
[1748919118499,0.89045732,668.74,668.58,0.29914146]
[1748919118698,0.89045853,668.73,668.58,0.29914146]
[1748919118893,0.89045649,668.72,668.58,0.29914146]
[1748919119097,0.8904576,668.71,668.58,0.29914146]
[1748919119297,0.77,668.75,668.58,0.29914146]
[1748919120297,0.89045734,668.74,668.58,0.29914146]
[1748919120497,0.77,668.75,668.58,0.29914146]
[1748919120901,0.89041541,668.74,668.58,0.29914146]
[1748919121098,0.77,668.75,668.58,0.29914146]
[1748919121295,0.8903882,668.74,668.58,0.29914146]
[1748919121497,0.89036414,668.73,668.58,0.29914146]
[1748919121896,0.77,668.75,668.58,0.29914146]
[1748919127910,1.10535395,668.72,668.58,0.29914146]
[1748919128506,1.10535395,668.71,668.58,0.29914146]
[1748919129210,1.10535395,668.72,668.58,0.29914146]
[1748919129703,1.10535395,668.73,668.58,0.29914146]
[1748919129904,1.10535395,668.74,668.58,0.29914146]
[1748919130310,1.10535395,668.75,668.58,0.29914146]
[1748919130905,0.89082666,668.76,668.58,0.29914146]
[1748919132110,1.147,668.75,668.58,0.29914146]
[1748919141719,2.25366023,668.75,668.58,0.29914146]
[1748919142412,1.147,668.75,668.58,0.29914146]
[1748919142616,1.10715748,668.74,668.58,0.29914146]
[1748919144614,1.147,668.75,668.58,0.29914146]
[1748919144817,1.10715748,668.72,668.58,0.29914146]
[1748919145018,1.99609711,668.71,668.58,0.29914146]
[1748919145214,2.88498922,668.71,668.58,0.29914146]
[1748919145414,1.10715748,668.7,668.58,0.29914146]
[1748919145614,0.88892899,668.69,668.58,0.29914146]
[1748919145923,1.10715748,668.69,668.58,0.29914146]
[1748919146220,0.88893487,668.68,668.58,0.29914146]
[1748919146619,0.888957,668.67,668.58,0.29914146]
[1748919147118,1.99652592,668.67,668.58,0.29914146]
[1748919148023,0.888957,668.67,668.58,0.29914146]
[1748919148520,1.99652592,668.67,668.58,0.29914146]
[1748919149919,0.888957,668.67,668.58,0.29914146]
[1748919151624,1.99690282,668.67,668.58,0.29914146]
[1748919152422,1.10794582,668.65,668.58,0.29914146]
[1748919152626,1.10794582,668.64,668.58,0.29914146]
[1748919153527,0.888957,668.67,668.58,0.29914146]
[1748919156630,1.99771807,668.67,668.58,0.29914146]
[1748919157533,0.888957,668.67,668.58,0.29914146]
[1748919157733,1.99799252,668.67,668.58,0.29914146]
[1748919157936,0.888957,668.67,668.58,0.29914146]
[1748919158127,1.99799252,668.67,668.58,0.29914146]
[1748919159333,0.888957,668.67,668.58,0.29914146]
[1748919160330,1.10903552,668.63,668.58,0.29914146]
[1748919161229,2.21822775,668.63,668.58,0.29914146]
[1748919161530,1.10919223,668.63,668.58,0.29914146]
[1748919161933,1.10919223,668.62,668.58,0.29914146]
[1748919162533,0.888957,668.67,668.58,0.29914146]
[1748919172346,0.88846055,668.66,668.58,0.29914146]
[1748919172540,0.888957,668.67,668.58,0.29914146]
[1748919172746,0.88845899,668.66,668.58,0.29914146]
[1748919173045,0.88845383,668.65,668.58,0.29914146]
[1748919173245,0.88843019,668.64,668.58,0.29914146]
[1748919173446,0.888957,668.67,668.58,0.29914146]
[1748919179948,1.10928379,668.66,668.58,0.29914146]
[1748919180345,0.888957,668.67,668.58,0.29914146]
[1748919268919,0.888957,668.67,668.59,1.11249514]
[1748919269114,0.16641611,668.68,668.6,0.29913251]
[1748919270317,0.16641611,668.68,668.6,1.41162765]
[1748919270519,0.16641611,668.68,668.6,0.29913251]
[1748919270718,0.16641611,668.68,668.61,1.112064]
[1748919270914,0.16641611,668.68,668.62,0.29912356]
[1748919271315,1.77783174,668.71,668.62,0.29912356]
[1748919271619,0.63808656,668.71,668.68,1.11171979]
[1748919271919,0.63808656,668.71,668.7,0.47554585]
[1748919272115,0.63808656,668.71,668.7,0.77463363]
[1748919272419,0.63808656,668.71,668.7,0.29908778]
[1748919277620,0.63808656,668.71,668.7,0.77274725]
[1748919278219,0.63808656,668.71,668.7,0.29908778]
[1748919279215,0.08605216,668.71,668.7,0.29908778]
[1748919279620,0.08605216,668.71,668.7,0.77290172]
[1748919280416,0.08605216,668.71,668.7,0.29908778]
[1748919289127,0.01277326,668.71,668.7,0.29908778]
[1748919289325,0.00189602,668.71,668.7,0.29908778]
[1748919294733,0.00189602,668.71,668.7,1.77989385]
[1748919294927,0.00189602,668.71,668.7,0.29908778]
[1748919299329,1.115,668.84,668.7,0.29908778]
[1748919299531,1.115,668.84,668.82,1.11152572]
[1748919299733,1.115,668.84,668.83,1.41055536]
[1748919300737,1.115,668.84,668.83,1.41054931]
[1748919300934,1.802,669.03,668.83,0.29902964]
[1748919301540,1.802,669.03,668.83,1.41054931]
[1748919301842,1.802,669.03,668.84,1.11151967]
[1748919302036,0.997,669.03,668.85,0.2990207]
[1748919302435,0.997,669.03,668.86,1.11151967]
[1748919302637,0.997,669.03,668.87,0.29901176]
[1748919303435,0.997,669.03,668.87,1.41068007]
[1748919305236,0.997,669.03,668.87,0.29901176]
[1748919307850,1.121,669.16,668.87,0.29901176]
[1748919310052,1.121,669.16,668.87,1.41082777]
[1748919310251,1.121,669.16,668.87,0.29901176]
[1748919310553,1.121,669.16,668.87,1.41082777]
[1748919310853,1.121,669.16,668.87,0.29901176]
[1748919311349,1.121,669.16,668.93,1.11176849]
[1748919311553,1.121,669.16,668.94,0.29898047]
[1748919313854,0.943,669.2,668.94,0.29898047]
[1748919315460,0.943,669.2,668.96,0.47307723]
[1748919315759,0.943,669.2,668.97,0.29896706]
[1748919316452,0.943,669.2,668.99,0.47307723]
[1748919316658,0.943,669.2,669.0,0.29895366]
[1748919317961,0.943,669.2,669.0,0.77203089]
[1748919318761,0.943,669.2,669.01,0.47307723]
[1748919318961,0.943,669.2,669.02,0.29894472]
[1748919320761,2.235,669.27,669.02,0.29894472]
[1748919329163,2.235,669.27,669.02,1.41302421]
[1748919329362,2.235,669.27,669.03,1.11407949]
[1748919329563,2.235,669.27,669.04,0.29893578]
[1748919331470,2.235,669.27,669.05,1.11548151]
[1748919331671,2.235,669.27,669.06,0.29892685]
[1748919339573,1.21,669.27,669.06,0.29892685]
[1748919341978,1.173,669.35,669.06,0.29892685]
[1748919346984,2.2825847,669.35,669.06,0.29892685]
[1748919347185,1.05065355,669.34,669.06,0.29892685]
[1748919347378,1.05065914,669.33,669.06,0.29892685]
[1748919347578,1.05066007,669.32,669.06,0.29892685]
[1748919347778,2.2825847,669.35,669.06,0.29892685]
[1748919347980,1.05064841,669.31,669.06,0.29892685]
[1748919348183,2.2825847,669.35,669.06,0.29892685]
[1748919348384,1.173,669.35,669.06,0.29892685]
[1748919348679,1.05062294,669.34,669.06,0.29892685]
[1748919348884,1.05061941,669.33,669.06,0.29892685]
[1748919349085,1.05062294,669.34,669.06,0.29892685]
[1748919349285,1.05061842,669.33,669.06,0.29892685]
[1748919349583,1.05062294,669.34,669.06,0.29892685]
[1748919350179,1.0483604,669.33,669.06,0.29892685]
[1748919350384,1.05062294,669.34,669.06,0.29892685]
[1748919350577,1.10898362,669.31,669.06,0.29892685]
[1748919350776,1.04837884,669.3,669.06,0.29892685]
[1748919350984,1.10861206,669.31,669.06,0.29892685]
[1748919351580,1.10861206,669.3,669.06,0.29892685]
[1748919351982,1.10861206,669.25,669.06,0.29892685]
[1748919352184,1.05062294,669.34,669.06,0.29892685]
[1748919352387,1.10808691,669.26,669.06,0.29892685]
[1748919352578,1.10808691,669.21,669.06,0.29892685]
[1748919352778,1.10808691,669.2,669.06,0.29892685]
[1748919353681,2.06057226,669.19,669.06,0.29892685]
[1748919353881,1.03028613,669.19,669.06,0.29892685]
[1748919354786,1.02607004,669.18,669.06,0.29892685]
[1748919355086,1.03028613,669.19,669.06,0.29892685]
[1748919355280,1.02611303,669.18,669.06,0.29892685]
[1748919357488,1.0287219,669.17,669.06,0.29892685]
[1748919357687,1.02611303,669.18,669.06,0.29892685]
[1748919357881,1.02872478,669.17,669.06,0.29892685]
[1748919358084,1.02611303,669.18,669.06,0.29892685]
[1748919358286,1.02872339,669.17,669.06,0.29892685]
[1748919358584,1.02611303,669.18,669.06,0.29892685]
[1748919390419,1.01223072,669.17,669.06,0.29892685]
[1748919390818,1.01222522,669.16,669.06,0.29892685]
[1748919391815,1.01223072,669.17,669.06,0.29892685]
[1748919421938,2.12118817,669.17,669.06,0.29892685]
[1748919422734,1.10895745,669.16,669.06,0.29892685]
[1748919423134,2.12118817,669.17,669.06,0.29892685]
[1748919423537,1.10895745,669.16,669.06,0.29892685]
[1748919424136,1.01223072,669.17,669.06,0.29892685]
[1748919458664,1.01223072,669.17,669.1,1.11239281]
[1748919458958,1.01223072,669.17,669.11,0.29890451]
[1748919459363,1.01223072,669.17,669.16,1.11053473]
[1748919459563,1.01223072,669.17,669.16,0.29888218]
[1748919460865,0.54725693,669.18,669.16,0.29888218]
[1748919467269,0.54725693,669.18,669.17,1.10577441]
[1748919467465,0.54725693,669.18,669.17,1.40465212]
[1748919468372,0.54725693,669.18,669.17,0.29887771]
[1748919469466,0.54725693,669.18,669.17,1.40422275]
[1748919469668,0.54725693,669.18,669.17,0.29887771]
[1748919472871,1.03028613,669.19,669.17,0.29887771]
[1748919473070,1.065,669.3,669.17,0.29887771]
[1748919492186,1.899,669.49,669.17,0.29887771]
[1748919492391,1.899,669.49,669.18,1.10623025]
[1748919492593,1.899,669.49,669.2,1.10623025]
[1748919492894,1.899,669.49,669.21,0.29885984]
[1748919493487,1.899,669.49,669.21,1.40599262]
[1748919494092,1.899,669.49,669.25,0.47307723]
[1748919494288,0.08668601,669.49,669.26,0.29883752]
[1748919494491,1.105,669.48,669.26,0.77191475]
[1748919495187,1.105,669.48,669.28,0.47307723]
[1748919495393,1.105,669.48,669.29,0.29882412]
[1748919496393,1.105,669.48,669.29,0.77190135]
[1748919496689,1.105,669.48,669.29,0.29882412]
[1748919501892,1.105,669.48,669.31,1.10978292]
[1748919502098,1.105,669.48,669.32,0.29881073]
[1748919502295,1.105,669.48,669.32,1.40859365]
[1748919504199,1.105,669.48,669.33,1.10978292]
[1748919504399,1.105,669.48,669.34,0.2988018]
[1748919505495,1.105,669.48,669.34,1.40963]
[1748919505695,1.105,669.48,669.34,0.2988018]
[1748919506297,1.105,669.48,669.34,1.40963]
[1748919507198,1.105,669.48,669.36,1.1108282]
[1748919507407,1.105,669.48,669.37,0.29878841]
[1748919508503,1.105,669.48,669.37,1.41078647]
[1748919509104,1.105,669.48,669.38,1.11199806]
[1748919509299,1.105,669.48,669.4,1.11199806]
[1748919509499,1.105,669.48,669.41,1.41076861]
[1748919509701,1.105,669.48,669.42,0.29876609]
[1748919517508,0.08668601,669.49,669.42,0.29876609]
[1748919521910,0.879,669.5,669.42,0.29876609]
[1748919524722,0.853,669.56,669.42,0.29876609]
[1748919538626,0.853,669.56,669.0,1.48822546]
[1748919538825,1.11097125,669.45,669.01,0.29894919]
[1748919539233,2.01276992,669.44,669.01,0.29894919]
[1748919539425,0.90179598,669.43,669.01,0.29894919]
[1748919539626,1.11097125,669.49,669.01,0.29894919]
[1748919539932,1.11097125,669.48,669.01,0.29894919]
[1748919540126,1.11097125,669.46,669.01,0.29894919]
[1748919541228,0.90172367,669.45,669.01,0.29894919]
[1748919541529,1.10925952,669.45,669.01,0.29894919]
[1748919541732,1.10925952,669.44,669.01,0.29894919]
[1748919541931,1.10925952,669.47,669.01,0.29894919]
[1748919542134,1.10925952,669.45,669.01,0.29894919]
[1748919542334,1.10925952,669.46,669.01,0.29894919]
[1748919542635,0.938,669.67,669.01,0.29894919]
[1748919542636,0.90172736,669.45,669.01,0.29894919]
[1748919542829,1.10925952,669.49,669.01,0.29894919]
[1748919543029,0.90172407,669.44,669.01,0.29894919]
[1748919543231,1.10925952,669.49,669.01,0.29894919]
[1748919543429,1.10925952,669.47,669.01,0.29894919]
[1748919543633,2.039,669.67,669.01,0.29894919]
[1748919543634,1.10925952,669.5,669.01,0.29894919]
[1748919543834,1.10925952,669.49,669.01,0.29894919]
[1748919544028,0.90172243,669.48,669.01,0.29894919]
[1748919544334,1.10925952,669.49,669.01,0.29894919]
[1748919544536,0.993,669.47,669.01,0.29894919]
[1748919544935,0.90171742,669.46,669.01,0.29894919]
[1748919545133,0.993,669.47,669.01,0.29894919]
[1748919545331,0.90137718,669.46,669.01,0.29894919]
[1748919545532,0.993,669.47,669.01,0.29894919]
[1748919546232,0.9013801,669.46,669.01,0.29894919]
[1748919546431,0.90138312,669.45,669.01,0.29894919]
[1748919546734,0.993,669.47,669.01,0.29894919]
[1748919546936,0.90138466,669.46,669.01,0.29894919]
[1748919547136,0.993,669.47,669.01,0.29894919]
[1748919547639,0.90137287,669.46,669.01,0.29894919]
[1748919547842,0.90137287,669.45,669.01,0.29894919]
[1748919548035,0.993,669.47,669.01,0.29894919]
[1748919564451,4.046,669.67,669.01,0.29894919]
[1748919566958,0.90236567,669.66,669.01,0.29894919]
[1748919567159,0.90236567,669.65,669.01,0.29894919]
[1748919567362,0.919,669.65,669.01,0.29894919]
[1748919568252,1.213,669.64,669.01,0.29894919]
[1748919569458,0.901,669.63,669.01,0.29894919]
[1748919583370,1.253,669.62,669.01,0.29894919]
[1748919604089,0.90029225,669.61,669.01,0.29894919]
[1748919604296,1.253,669.62,669.01,0.29894919]
[1748919604790,0.90029613,669.61,669.01,0.29894919]
[1748919605492,2.12028334,669.6,669.01,0.29894919]
[1748919605691,1.22,669.6,669.01,0.29894919]
[1748919606093,1.22,669.6,669.05,1.11422679]
[1748919606291,1.22,669.6,669.1,1.11422679]
[1748919606494,1.22,669.6,669.11,0.29890451]
[1748919606690,1.22,669.6,669.12,1.11422679]
[1748919606887,1.22,669.6,669.11,0.29890451]
[1748919606888,1.22,669.6,669.13,1.41312237]
[1748919607090,1.22,669.6,669.14,0.29889111]
[1748919607296,1.22,669.6,669.14,1.4131179]
[1748919607691,1.22,669.6,669.14,0.29889111]
[1748919607893,1.22,669.6,669.19,1.11601926]
[1748919608094,1.22,669.6,669.2,0.29886431]
[1748919609195,1.22,669.6,669.2,1.41488357]
[1748919609395,1.22,669.6,669.2,0.29886431]
[1748919609896,1.22,669.6,669.2,1.41488357]
[1748919610294,0.90029613,669.61,669.2,1.41488357]
[1748919610696,0.90029613,669.61,669.2,0.29886431]
[1748919620202,0.90029613,669.61,669.2,1.41485809]
[1748919620503,0.90029613,669.61,669.2,0.29886431]
[1748919621500,0.90029613,669.61,669.25,1.11599378]
[1748919621801,0.90029613,669.61,669.26,0.29883752]
[1748919622299,0.90029613,669.61,669.26,1.4148313]
[1748919622504,0.90029613,669.61,669.26,0.29883752]
[1748919622706,0.90029613,669.61,669.27,1.11442765]
[1748919622902,0.90029613,669.61,669.28,0.29882859]
[1748919624208,0.90029613,669.61,669.31,1.11442765]
[1748919624402,0.90029613,669.61,669.32,0.29881073]
[1748919709074,1.015,669.6,669.32,0.29881073]
[1748919719878,1.015,669.6,669.41,1.11669335]
[1748919720182,1.015,669.6,669.32,0.29881073]
[1748919720183,1.015,669.6,669.44,1.11669335]
[1748919720779,1.015,669.6,669.48,1.11669335]
[1748919720982,1.015,669.6,669.49,0.29873485]
[1748919722682,1.015,669.6,669.49,1.41524339]
[1748919723477,1.015,669.6,669.49,0.29873485]
[1748919726586,1.015,669.6,669.49,1.41453264]
[1748919727482,1.015,669.6,669.49,0.29873485]
[1748919728190,1.015,669.6,669.49,1.41453264]
[1748919728382,1.015,669.6,669.49,0.29873485]
[1748919739294,0.2597044,670.0,669.49,0.29873485]
[1748919739897,0.89851899,669.99,669.49,0.29873485]
[1748919740093,0.2597044,670.0,669.49,0.29873485]
[1748919740290,0.89856151,669.99,669.49,0.29873485]
[1748919740495,0.89854322,669.98,669.49,0.29873485]
[1748919740792,0.8985421,669.97,669.49,0.29873485]
[1748919740993,0.89854519,669.96,669.49,0.29873485]
[1748919741192,0.89855436,669.95,669.49,0.29873485]
[1748919741496,0.8985421,669.97,669.49,0.29873485]
[1748919741695,0.89855366,669.96,669.49,0.29873485]
[1748919742095,0.89855507,669.95,669.49,0.29873485]
[1748919742292,0.89854697,669.94,669.49,0.29873485]
[1748919742596,0.89855366,669.96,669.49,0.29873485]
[1748919742798,0.89875282,669.93,669.49,0.29873485]
[1748919742991,1.7968546,669.92,669.49,0.29873485]
[1748919743192,0.89881012,669.92,669.49,0.29873485]
[1748919743393,0.89802315,669.91,669.49,0.29873485]
[1748919743594,0.89881012,669.92,669.49,0.29873485]
[1748919744398,0.89807722,669.91,669.49,0.29873485]
[1748919744600,0.89822069,669.9,669.49,0.29873485]
[1748919744795,0.89881012,669.92,669.49,0.29873485]
[1748919744998,0.89822168,669.91,669.49,0.29873485]
[1748919745196,0.89821404,669.9,669.49,0.29873485]
[1748919745394,0.89881012,669.92,669.49,0.29873485]
[1748919745995,0.89743688,669.91,669.49,0.29873485]
[1748919746294,0.89881012,669.92,669.49,0.29873485]
[1748919748205,0.89744012,669.91,669.49,0.29873485]
[1748919748399,0.89881012,669.92,669.49,0.29873485]
[1748919749005,0.89845052,669.91,669.49,0.29873485]
[1748919749202,0.89881012,669.92,669.49,0.29873485]
[1748919749606,0.89846048,669.91,669.49,0.29873485]
[1748919749804,0.89881012,669.92,669.49,0.29873485]
[1748919749999,0.89845511,669.91,669.49,0.29873485]
[1748919750398,0.89845489,669.9,669.49,0.29873485]
[1748919750605,0.89881012,669.92,669.49,0.29873485]
[1748919751306,0.89851338,669.91,669.49,0.29873485]
[1748919751500,0.89851338,669.9,669.49,0.29873485]
[1748919751700,0.89881012,669.92,669.49,0.29873485]
[1748919752602,1.48484311,669.9,669.49,0.29873485]
[1748919753008,2.38333194,669.89,669.49,0.29873485]
[1748919753208,0.89849017,669.88,669.49,0.29873485]
[1748919753411,1.48484311,669.9,669.49,0.29873485]
[1748919753705,0.89881012,669.92,669.49,0.29873485]
[1748919754508,0.89849214,669.91,669.49,0.29873485]
[1748919754716,0.89881012,669.92,669.49,0.29873485]
[1748919754911,0.89850647,669.91,669.49,0.29873485]
[1748919755105,0.89881012,669.92,669.49,0.29873485]
[1748919755306,0.89850996,669.91,669.49,0.29873485]
[1748919755506,0.89850996,669.9,669.49,0.29873485]
[1748919755709,0.89881012,669.92,669.49,0.29873485]
[1748919755911,0.89739259,669.89,669.49,0.29873485]
[1748919756107,0.89739813,669.88,669.49,0.29873485]
[1748919756309,0.89739259,669.89,669.49,0.29873485]
[1748919759810,0.89786417,669.88,669.49,0.29873485]
[1748919760015,0.89752794,669.87,669.49,0.29873485]
[1748919760214,0.89739259,669.89,669.49,0.29873485]
[1748919761413,0.89754079,669.88,669.49,0.29873485]
[1748919761613,0.89754191,669.87,669.49,0.29873485]
[1748919761813,0.89754079,669.88,669.49,0.29873485]
[1748919762809,0.89754942,669.87,669.49,0.29873485]
[1748919763011,0.89754079,669.88,669.49,0.29873485]
[1748919763212,0.89754678,669.87,669.49,0.29873485]
[1748919763414,0.89754079,669.88,669.49,0.29873485]
[1748919764211,0.89754549,669.87,669.49,0.29873485]
[1748919764719,0.89754494,669.86,669.49,0.29873485]
[1748919764914,0.89754549,669.87,669.49,0.29873485]
[1748919766716,0.89718493,669.86,669.49,0.29873485]
[1748919766917,0.89717917,669.85,669.49,0.29873485]
[1748919767216,0.89716235,669.84,669.49,0.29873485]
[1748919767413,0.89754549,669.87,669.49,0.29873485]
[1748919767614,0.89697994,669.83,669.49,0.29873485]
[1748919768417,0.89699488,669.82,669.49,0.29873485]
[1748919768620,0.89697994,669.83,669.49,0.29873485]
[1748919769018,0.89698891,669.82,669.49,0.29873485]
[1748919769221,0.89697994,669.83,669.49,0.29873485]
[1748919769623,0.89675906,669.82,669.49,0.29873485]
[1748919769826,0.89675971,669.81,669.49,0.29873485]
[1748919770126,0.89697994,669.83,669.49,0.29873485]
[1748919770321,0.89675412,669.82,669.49,0.29873485]
[1748919770522,0.89675272,669.81,669.49,0.29873485]
[1748919770724,0.89697994,669.83,669.49,0.29873485]
[1748919771823,0.89673682,669.82,669.49,0.29873485]
[1748919772124,0.89671885,669.81,669.49,0.29873485]
[1748919772325,0.89697994,669.83,669.49,0.29873485]
[1748919772621,0.89654245,669.82,669.49,0.29873485]
[1748919772821,1.79308022,669.82,669.49,0.29873485]
[1748919773023,0.89653382,669.81,669.49,0.29873485]
[1748919773224,0.89634764,669.8,669.49,0.29873485]
[1748919773425,1.79308022,669.82,669.49,0.29873485]
[1748919773624,0.89633829,669.79,669.49,0.29873485]
[1748919773820,0.89634212,669.78,669.49,0.29873485]
[1748919774019,0.89593864,669.77,669.49,0.29873485]
[1748919774227,0.89633829,669.79,669.49,0.29873485]
[1748919774425,0.89594338,669.76,669.49,0.29873485]
[1748919775226,0.89592526,669.75,669.49,0.29873485]
[1748919775422,0.89592681,669.74,669.49,0.29873485]
[1748919775626,0.89594338,669.76,669.49,0.29873485]
[1748919776026,0.89592526,669.75,669.49,0.29873485]
[1748919776226,0.89594338,669.76,669.49,0.29873485]
[1748919777226,0.89561912,669.75,669.49,0.29873485]
[1748919777427,0.89594338,669.76,669.49,0.29873485]
[1748919778827,0.89565635,669.75,669.49,0.29873485]
[1748919779029,0.89594338,669.76,669.49,0.29873485]
[1748919784033,0.89425545,669.75,669.49,0.29873485]
[1748919784234,0.89594338,669.76,669.49,0.29873485]
[1748919784433,0.89423237,669.75,669.49,0.29873485]
[1748919784627,0.89594338,669.76,669.49,0.29873485]
[1748919784838,0.89421694,669.75,669.49,0.29873485]
[1748919785033,0.89594338,669.76,669.49,0.29873485]
[1748919785437,0.89419986,669.75,669.49,0.29873485]
[1748919785634,0.89594338,669.76,669.49,0.29873485]
[1748919786835,0.89334607,669.75,669.49,0.29873485]
[1748919787135,0.89333662,669.74,669.49,0.29873485]
[1748919787330,0.89594338,669.76,669.49,0.29873485]
[1748919788935,0.89332535,669.75,669.49,0.29873485]
[1748919789135,0.89594338,669.76,669.49,0.29873485]
[1748919789336,1.78665155,669.75,669.49,0.29873485]
[1748919789536,0.89332406,669.75,669.49,0.29873485]
[1748919791135,0.89332767,669.74,669.49,0.29873485]
[1748919791335,0.89332406,669.75,669.49,0.29873485]
[1748919791533,0.89332464,669.74,669.49,0.29873485]
[1748919791731,0.89332406,669.75,669.49,0.29873485]
[1748919792137,1.48484311,669.71,669.49,0.29873485]
[1748919792337,1.48484311,669.7,669.49,0.29873485]
[1748919792533,1.48484311,669.69,669.49,0.29873485]
[1748919792737,0.46616237,669.68,669.49,0.29873485]
[1748919792932,0.46614772,669.67,669.49,0.29873485]
[1748919793138,1.48484311,669.69,669.49,0.29873485]
[1748919793339,2.38366668,669.68,669.49,0.29873485]
[1748919793534,1.48484311,669.68,669.49,0.29873485]
[1748919793733,0.46614298,669.67,669.49,0.29873485]
[1748919793935,1.48484311,669.68,669.49,0.29873485]
[1748919794140,0.46613881,669.67,669.49,0.29873485]
[1748919794338,0.89881524,669.66,669.49,0.29873485]
[1748919794538,0.89881544,669.65,669.49,0.29873485]
[1748919794842,0.46613352,669.64,669.49,0.29873485]
[1748919795041,1.36493811,669.63,669.49,0.29873485]
[1748919795342,0.89881524,669.66,669.49,0.29873485]
[1748919796839,1.36544683,669.65,669.49,0.29873485]
[1748919797046,0.89881524,669.66,669.49,0.29873485]
[1748919797345,0.89932174,669.65,669.49,0.29873485]
[1748919797544,1.36543004,669.64,669.49,0.29873485]
[1748919797743,0.89881524,669.66,669.49,0.29873485]
[1748919797938,0.89932638,669.65,669.49,0.29873485]
[1748919798245,0.46610667,669.64,669.49,0.29873485]
[1748919798442,0.89932398,669.63,669.49,0.29873485]
[1748919798642,0.89881524,669.66,669.49,0.29873485]
[1748919798840,0.46610547,669.65,669.49,0.29873485]
[1748919799042,0.89881524,669.66,669.49,0.29873485]
[1748919799644,0.89931466,669.65,669.49,0.29873485]
[1748919800041,0.89881524,669.66,669.49,0.29873485]
[1748919800549,0.89954738,669.65,669.49,0.29873485]
[1748919800848,0.8995926,669.64,669.49,0.29873485]
[1748919801044,0.89954738,669.65,669.49,0.29873485]
[1748919802251,0.89959707,669.64,669.49,0.29873485]
[1748919802446,1.48484311,669.61,669.49,0.29873485]
[1748919803246,0.89954738,669.65,668.67,0.25988477]
[1748919803247,2.38431419,669.6,668.67,0.25988477]
[1748919803452,1.48484311,669.6,668.69,0.29909225]
[1748919803649,1.48484311,669.61,668.69,0.29909225]
[1748919804153,1.48484311,669.59,668.69,0.29909225]
[1748919804453,1.36578297,669.58,668.69,0.29909225]
[1748919804653,1.48484311,669.52,668.69,0.29909225]
[1748919804856,1.36578297,669.51,668.69,0.29909225]
[1748919805049,1.36578297,669.5,668.69,0.29909225]
[1748919805253,1.36478166,669.49,668.69,0.29909225]
[1748919805453,1.48484311,669.53,668.69,0.29909225]
[1748919805650,1.3648509,669.52,668.69,0.29909225]
[1748919805859,1.48484311,669.55,668.69,0.29909225]
[1748919806255,1.48484311,669.54,668.69,0.29909225]
[1748919806451,1.48484311,669.55,668.69,0.29909225]
[1748919806749,0.46638244,669.54,668.69,0.29909225]
[1748919806956,1.48484311,669.56,668.69,0.29909225]
[1748919807560,0.46609581,669.55,668.69,0.29909225]
[1748919807756,2.39784311,669.57,668.69,0.29909225]
[1748919808459,0.913,669.57,668.69,0.29909225]
[1748919809452,1.243,669.56,668.69,0.29909225]